{"text_format":"3","workbook":"xlsx","n_sheets":2,"sheets":["Gegevens sollicitant","Vergelijkingsgeg. sollicitant"],"not_rendered":{"defined_names":4},"read":"whole","date_system":"1900"}

{"sheet":"Gegevens sollicitant","index":0,"n_rows":2,"n_cols":13,"rows_kept":2,"merged":[[0,0,0,3]]}
["Gegevens sollicitant"]
["Achternaam","Voornaam","Tussen-\nvoegsel","Functie waarnaar\nwordt gesolliciteerd","Status van\nsollicitatie","Postadres","Telefoonnummer\nthuis","Ander telefoon-\nnummer","E-mailadres","Bron van\nsollicitatie","Ontvangst-\ndatum CV","Naam rekruteerder","Opmerkingen rekruteerder"]

{"sheet":"Vergelijkingsgeg. sollicitant","index":1,"n_rows":59,"n_cols":12,"rows_kept":59,"merged":[[0,0,0,3]]}
["Vergelijkingsgegevens sollicitant"]
["Achternaam","Voornaam","Tussen-\nvoegsel","Functie waarnaar\nwordt gesolliciteerd","Huidige werkgever","Huidige functie","Opleiding","Huidige\nvisumstatus","Aantal jaren relevante ervaring","Relevante vaardigheden of ervaring","Naam rekruteerder","Opmerkingen rekruteerder"]
[{"$f":"IF('Gegevens sollicitant'!A3=\"\",\"\",'Gegevens sollicitant'!A3)","v":""}]
[{"$f":"IF('Gegevens sollicitant'!A4=\"\",\"\",'Gegevens sollicitant'!A4)","v":""},{"$f":"IF('Gegevens sollicitant'!B4=\"\",\"\",'Gegevens sollicitant'!B4)","v":""},{"$f":"IF('Gegevens sollicitant'!C4=\"\",\"\",'Gegevens sollicitant'!C4)","v":""},{"$f":"IF('Gegevens sollicitant'!D4=\"\",\"\",'Gegevens sollicitant'!D4)","v":""},{"$nulls":6},{"$f":"IF('Gegevens sollicitant'!L4=\"\",\"\",'Gegevens sollicitant'!L4)","v":""},{"$f":"IF('Gegevens sollicitant'!M4=\"\",\"\",'Gegevens sollicitant'!M4)","v":""}]
[{"$f":"IF('Gegevens sollicitant'!A5=\"\",\"\",'Gegevens sollicitant'!A5)","v":""},{"$f":"IF('Gegevens sollicitant'!B5=\"\",\"\",'Gegevens sollicitant'!B5)","v":""},{"$f":"IF('Gegevens sollicitant'!C5=\"\",\"\",'Gegevens sollicitant'!C5)","v":""},{"$f":"IF('Gegevens sollicitant'!D5=\"\",\"\",'Gegevens sollicitant'!D5)","v":""},{"$nulls":6},{"$f":"IF('Gegevens sollicitant'!L5=\"\",\"\",'Gegevens sollicitant'!L5)","v":""},{"$f":"IF('Gegevens sollicitant'!M5=\"\",\"\",'Gegevens sollicitant'!M5)","v":""}]
[{"$f":"IF('Gegevens sollicitant'!A6=\"\",\"\",'Gegevens sollicitant'!A6)","v":""},{"$f":"IF('Gegevens sollicitant'!B6=\"\",\"\",'Gegevens sollicitant'!B6)","v":""},{"$f":"IF('Gegevens sollicitant'!C6=\"\",\"\",'Gegevens sollicitant'!C6)","v":""},{"$f":"IF('Gegevens sollicitant'!D6=\"\",\"\",'Gegevens sollicitant'!D6)","v":""},{"$nulls":6},{"$f":"IF('Gegevens sollicitant'!L6=\"\",\"\",'Gegevens sollicitant'!L6)","v":""},{"$f":"IF('Gegevens sollicitant'!M6=\"\",\"\",'Gegevens sollicitant'!M6)","v":""}]
[{"$f":"IF('Gegevens sollicitant'!A7=\"\",\"\",'Gegevens sollicitant'!A7)","v":""},{"$f":"IF('Gegevens sollicitant'!B7=\"\",\"\",'Gegevens sollicitant'!B7)","v":""},{"$f":"IF('Gegevens sollicitant'!C7=\"\",\"\",'Gegevens sollicitant'!C7)","v":""},{"$f":"IF('Gegevens sollicitant'!D7=\"\",\"\",'Gegevens sollicitant'!D7)","v":""},{"$nulls":6},{"$f":"IF('Gegevens sollicitant'!L7=\"\",\"\",'Gegevens sollicitant'!L7)","v":""},{"$f":"IF('Gegevens sollicitant'!M7=\"\",\"\",'Gegevens sollicitant'!M7)","v":""}]
[{"$f":"IF('Gegevens sollicitant'!A8=\"\",\"\",'Gegevens sollicitant'!A8)","v":""},{"$f":"IF('Gegevens sollicitant'!B8=\"\",\"\",'Gegevens sollicitant'!B8)","v":""},{"$f":"IF('Gegevens sollicitant'!C8=\"\",\"\",'Gegevens sollicitant'!C8)","v":""},{"$f":"IF('Gegevens sollicitant'!D8=\"\",\"\",'Gegevens sollicitant'!D8)","v":""},{"$nulls":6},{"$f":"IF('Gegevens sollicitant'!L8=\"\",\"\",'Gegevens sollicitant'!L8)","v":""},{"$f":"IF('Gegevens sollicitant'!M8=\"\",\"\",'Gegevens sollicitant'!M8)","v":""}]
[{"$f":"IF('Gegevens sollicitant'!A9=\"\",\"\",'Gegevens sollicitant'!A9)","v":""},{"$f":"IF('Gegevens sollicitant'!B9=\"\",\"\",'Gegevens sollicitant'!B9)","v":""},{"$f":"IF('Gegevens sollicitant'!C9=\"\",\"\",'Gegevens sollicitant'!C9)","v":""},{"$f":"IF('Gegevens sollicitant'!D9=\"\",\"\",'Gegevens sollicitant'!D9)","v":""},{"$nulls":6},{"$f":"IF('Gegevens sollicitant'!L9=\"\",\"\",'Gegevens sollicitant'!L9)","v":""},{"$f":"IF('Gegevens sollicitant'!M9=\"\",\"\",'Gegevens sollicitant'!M9)","v":""}]
[{"$f":"IF('Gegevens sollicitant'!A10=\"\",\"\",'Gegevens sollicitant'!A10)","v":""},{"$f":"IF('Gegevens sollicitant'!B10=\"\",\"\",'Gegevens sollicitant'!B10)","v":""},{"$f":"IF('Gegevens sollicitant'!C10=\"\",\"\",'Gegevens sollicitant'!C10)","v":""},{"$f":"IF('Gegevens sollicitant'!D10=\"\",\"\",'Gegevens sollicitant'!D10)","v":""},{"$nulls":6},{"$f":"IF('Gegevens sollicitant'!L10=\"\",\"\",'Gegevens sollicitant'!L10)","v":""},{"$f":"IF('Gegevens sollicitant'!M10=\"\",\"\",'Gegevens sollicitant'!M10)","v":""}]
[{"$f":"IF('Gegevens sollicitant'!A11=\"\",\"\",'Gegevens sollicitant'!A11)","v":""},{"$f":"IF('Gegevens sollicitant'!B11=\"\",\"\",'Gegevens sollicitant'!B11)","v":""},{"$f":"IF('Gegevens sollicitant'!C11=\"\",\"\",'Gegevens sollicitant'!C11)","v":""},{"$f":"IF('Gegevens sollicitant'!D11=\"\",\"\",'Gegevens sollicitant'!D11)","v":""},{"$nulls":6},{"$f":"IF('Gegevens sollicitant'!L11=\"\",\"\",'Gegevens sollicitant'!L11)","v":""},{"$f":"IF('Gegevens sollicitant'!M11=\"\",\"\",'Gegevens sollicitant'!M11)","v":""}]
[{"$f":"IF('Gegevens sollicitant'!A12=\"\",\"\",'Gegevens sollicitant'!A12)","v":""},{"$f":"IF('Gegevens sollicitant'!B12=\"\",\"\",'Gegevens sollicitant'!B12)","v":""},{"$f":"IF('Gegevens sollicitant'!C12=\"\",\"\",'Gegevens sollicitant'!C12)","v":""},{"$f":"IF('Gegevens sollicitant'!D12=\"\",\"\",'Gegevens sollicitant'!D12)","v":""},{"$nulls":6},{"$f":"IF('Gegevens sollicitant'!L12=\"\",\"\",'Gegevens sollicitant'!L12)","v":""},{"$f":"IF('Gegevens sollicitant'!M12=\"\",\"\",'Gegevens sollicitant'!M12)","v":""}]
[{"$f":"IF('Gegevens sollicitant'!A13=\"\",\"\",'Gegevens sollicitant'!A13)","v":""},{"$f":"IF('Gegevens sollicitant'!B13=\"\",\"\",'Gegevens sollicitant'!B13)","v":""},{"$f":"IF('Gegevens sollicitant'!C13=\"\",\"\",'Gegevens sollicitant'!C13)","v":""},{"$f":"IF('Gegevens sollicitant'!D13=\"\",\"\",'Gegevens sollicitant'!D13)","v":""},{"$nulls":6},{"$f":"IF('Gegevens sollicitant'!L13=\"\",\"\",'Gegevens sollicitant'!L13)","v":""},{"$f":"IF('Gegevens sollicitant'!M13=\"\",\"\",'Gegevens sollicitant'!M13)","v":""}]
[{"$f":"IF('Gegevens sollicitant'!A14=\"\",\"\",'Gegevens sollicitant'!A14)","v":""},{"$f":"IF('Gegevens sollicitant'!B14=\"\",\"\",'Gegevens sollicitant'!B14)","v":""},{"$f":"IF('Gegevens sollicitant'!C14=\"\",\"\",'Gegevens sollicitant'!C14)","v":""},{"$f":"IF('Gegevens sollicitant'!D14=\"\",\"\",'Gegevens sollicitant'!D14)","v":""},{"$nulls":6},{"$f":"IF('Gegevens sollicitant'!L14=\"\",\"\",'Gegevens sollicitant'!L14)","v":""},{"$f":"IF('Gegevens sollicitant'!M14=\"\",\"\",'Gegevens sollicitant'!M14)","v":""}]
[{"$f":"IF('Gegevens sollicitant'!A15=\"\",\"\",'Gegevens sollicitant'!A15)","v":""},{"$f":"IF('Gegevens sollicitant'!B15=\"\",\"\",'Gegevens sollicitant'!B15)","v":""},{"$f":"IF('Gegevens sollicitant'!C15=\"\",\"\",'Gegevens sollicitant'!C15)","v":""},{"$f":"IF('Gegevens sollicitant'!D15=\"\",\"\",'Gegevens sollicitant'!D15)","v":""},{"$nulls":6},{"$f":"IF('Gegevens sollicitant'!L15=\"\",\"\",'Gegevens sollicitant'!L15)","v":""},{"$f":"IF('Gegevens sollicitant'!M15=\"\",\"\",'Gegevens sollicitant'!M15)","v":""}]
[{"$f":"IF('Gegevens sollicitant'!A16=\"\",\"\",'Gegevens sollicitant'!A16)","v":""},{"$f":"IF('Gegevens sollicitant'!B16=\"\",\"\",'Gegevens sollicitant'!B16)","v":""},{"$f":"IF('Gegevens sollicitant'!C16=\"\",\"\",'Gegevens sollicitant'!C16)","v":""},{"$f":"IF('Gegevens sollicitant'!D16=\"\",\"\",'Gegevens sollicitant'!D16)","v":""},{"$nulls":6},{"$f":"IF('Gegevens sollicitant'!L16=\"\",\"\",'Gegevens sollicitant'!L16)","v":""},{"$f":"IF('Gegevens sollicitant'!M16=\"\",\"\",'Gegevens sollicitant'!M16)","v":""}]
[{"$f":"IF('Gegevens sollicitant'!A17=\"\",\"\",'Gegevens sollicitant'!A17)","v":""},{"$f":"IF('Gegevens sollicitant'!B17=\"\",\"\",'Gegevens sollicitant'!B17)","v":""},{"$f":"IF('Gegevens sollicitant'!C17=\"\",\"\",'Gegevens sollicitant'!C17)","v":""},{"$f":"IF('Gegevens sollicitant'!D17=\"\",\"\",'Gegevens sollicitant'!D17)","v":""},{"$nulls":6},{"$f":"IF('Gegevens sollicitant'!L17=\"\",\"\",'Gegevens sollicitant'!L17)","v":""},{"$f":"IF('Gegevens sollicitant'!M17=\"\",\"\",'Gegevens sollicitant'!M17)","v":""}]
[{"$f":"IF('Gegevens sollicitant'!A18=\"\",\"\",'Gegevens sollicitant'!A18)","v":""},{"$f":"IF('Gegevens sollicitant'!B18=\"\",\"\",'Gegevens sollicitant'!B18)","v":""},{"$f":"IF('Gegevens sollicitant'!C18=\"\",\"\",'Gegevens sollicitant'!C18)","v":""},{"$f":"IF('Gegevens sollicitant'!D18=\"\",\"\",'Gegevens sollicitant'!D18)","v":""},{"$nulls":6},{"$f":"IF('Gegevens sollicitant'!L18=\"\",\"\",'Gegevens sollicitant'!L18)","v":""},{"$f":"IF('Gegevens sollicitant'!M18=\"\",\"\",'Gegevens sollicitant'!M18)","v":""}]
[{"$f":"IF('Gegevens sollicitant'!A19=\"\",\"\",'Gegevens sollicitant'!A19)","v":""},{"$f":"IF('Gegevens sollicitant'!B19=\"\",\"\",'Gegevens sollicitant'!B19)","v":""},{"$f":"IF('Gegevens sollicitant'!C19=\"\",\"\",'Gegevens sollicitant'!C19)","v":""},{"$f":"IF('Gegevens sollicitant'!D19=\"\",\"\",'Gegevens sollicitant'!D19)","v":""},{"$nulls":6},{"$f":"IF('Gegevens sollicitant'!L19=\"\",\"\",'Gegevens sollicitant'!L19)","v":""},{"$f":"IF('Gegevens sollicitant'!M19=\"\",\"\",'Gegevens sollicitant'!M19)","v":""}]
[{"$f":"IF('Gegevens sollicitant'!A20=\"\",\"\",'Gegevens sollicitant'!A20)","v":""},{"$f":"IF('Gegevens sollicitant'!B20=\"\",\"\",'Gegevens sollicitant'!B20)","v":""},{"$f":"IF('Gegevens sollicitant'!C20=\"\",\"\",'Gegevens sollicitant'!C20)","v":""},{"$f":"IF('Gegevens sollicitant'!D20=\"\",\"\",'Gegevens sollicitant'!D20)","v":""},{"$nulls":6},{"$f":"IF('Gegevens sollicitant'!L20=\"\",\"\",'Gegevens sollicitant'!L20)","v":""},{"$f":"IF('Gegevens sollicitant'!M20=\"\",\"\",'Gegevens sollicitant'!M20)","v":""}]
[{"$f":"IF('Gegevens sollicitant'!A21=\"\",\"\",'Gegevens sollicitant'!A21)","v":""},{"$f":"IF('Gegevens sollicitant'!B21=\"\",\"\",'Gegevens sollicitant'!B21)","v":""},{"$f":"IF('Gegevens sollicitant'!C21=\"\",\"\",'Gegevens sollicitant'!C21)","v":""},{"$f":"IF('Gegevens sollicitant'!D21=\"\",\"\",'Gegevens sollicitant'!D21)","v":""},{"$nulls":6},{"$f":"IF('Gegevens sollicitant'!L21=\"\",\"\",'Gegevens sollicitant'!L21)","v":""},{"$f":"IF('Gegevens sollicitant'!M21=\"\",\"\",'Gegevens sollicitant'!M21)","v":""}]
[{"$f":"IF('Gegevens sollicitant'!A22=\"\",\"\",'Gegevens sollicitant'!A22)","v":""},{"$f":"IF('Gegevens sollicitant'!B22=\"\",\"\",'Gegevens sollicitant'!B22)","v":""},{"$f":"IF('Gegevens sollicitant'!C22=\"\",\"\",'Gegevens sollicitant'!C22)","v":""},{"$f":"IF('Gegevens sollicitant'!D22=\"\",\"\",'Gegevens sollicitant'!D22)","v":""},{"$nulls":6},{"$f":"IF('Gegevens sollicitant'!L22=\"\",\"\",'Gegevens sollicitant'!L22)","v":""},{"$f":"IF('Gegevens sollicitant'!M22=\"\",\"\",'Gegevens sollicitant'!M22)","v":""}]
[{"$f":"IF('Gegevens sollicitant'!A23=\"\",\"\",'Gegevens sollicitant'!A23)","v":""},{"$f":"IF('Gegevens sollicitant'!B23=\"\",\"\",'Gegevens sollicitant'!B23)","v":""},{"$f":"IF('Gegevens sollicitant'!C23=\"\",\"\",'Gegevens sollicitant'!C23)","v":""},{"$f":"IF('Gegevens sollicitant'!D23=\"\",\"\",'Gegevens sollicitant'!D23)","v":""},{"$nulls":6},{"$f":"IF('Gegevens sollicitant'!L23=\"\",\"\",'Gegevens sollicitant'!L23)","v":""},{"$f":"IF('Gegevens sollicitant'!M23=\"\",\"\",'Gegevens sollicitant'!M23)","v":""}]
[{"$f":"IF('Gegevens sollicitant'!A24=\"\",\"\",'Gegevens sollicitant'!A24)","v":""},{"$f":"IF('Gegevens sollicitant'!B24=\"\",\"\",'Gegevens sollicitant'!B24)","v":""},{"$f":"IF('Gegevens sollicitant'!C24=\"\",\"\",'Gegevens sollicitant'!C24)","v":""},{"$f":"IF('Gegevens sollicitant'!D24=\"\",\"\",'Gegevens sollicitant'!D24)","v":""},{"$nulls":6},{"$f":"IF('Gegevens sollicitant'!L24=\"\",\"\",'Gegevens sollicitant'!L24)","v":""},{"$f":"IF('Gegevens sollicitant'!M24=\"\",\"\",'Gegevens sollicitant'!M24)","v":""}]
[{"$f":"IF('Gegevens sollicitant'!A25=\"\",\"\",'Gegevens sollicitant'!A25)","v":""},{"$f":"IF('Gegevens sollicitant'!B25=\"\",\"\",'Gegevens sollicitant'!B25)","v":""},{"$f":"IF('Gegevens sollicitant'!C25=\"\",\"\",'Gegevens sollicitant'!C25)","v":""},{"$f":"IF('Gegevens sollicitant'!D25=\"\",\"\",'Gegevens sollicitant'!D25)","v":""},{"$nulls":6},{"$f":"IF('Gegevens sollicitant'!L25=\"\",\"\",'Gegevens sollicitant'!L25)","v":""},{"$f":"IF('Gegevens sollicitant'!M25=\"\",\"\",'Gegevens sollicitant'!M25)","v":""}]
[{"$f":"IF('Gegevens sollicitant'!A26=\"\",\"\",'Gegevens sollicitant'!A26)","v":""},{"$f":"IF('Gegevens sollicitant'!B26=\"\",\"\",'Gegevens sollicitant'!B26)","v":""},{"$f":"IF('Gegevens sollicitant'!C26=\"\",\"\",'Gegevens sollicitant'!C26)","v":""},{"$f":"IF('Gegevens sollicitant'!D26=\"\",\"\",'Gegevens sollicitant'!D26)","v":""},{"$nulls":6},{"$f":"IF('Gegevens sollicitant'!L26=\"\",\"\",'Gegevens sollicitant'!L26)","v":""},{"$f":"IF('Gegevens sollicitant'!M26=\"\",\"\",'Gegevens sollicitant'!M26)","v":""}]
[{"$f":"IF('Gegevens sollicitant'!A27=\"\",\"\",'Gegevens sollicitant'!A27)","v":""},{"$f":"IF('Gegevens sollicitant'!B27=\"\",\"\",'Gegevens sollicitant'!B27)","v":""},{"$f":"IF('Gegevens sollicitant'!C27=\"\",\"\",'Gegevens sollicitant'!C27)","v":""},{"$f":"IF('Gegevens sollicitant'!D27=\"\",\"\",'Gegevens sollicitant'!D27)","v":""},{"$nulls":6},{"$f":"IF('Gegevens sollicitant'!L27=\"\",\"\",'Gegevens sollicitant'!L27)","v":""},{"$f":"IF('Gegevens sollicitant'!M27=\"\",\"\",'Gegevens sollicitant'!M27)","v":""}]
[{"$f":"IF('Gegevens sollicitant'!A28=\"\",\"\",'Gegevens sollicitant'!A28)","v":""},{"$f":"IF('Gegevens sollicitant'!B28=\"\",\"\",'Gegevens sollicitant'!B28)","v":""},{"$f":"IF('Gegevens sollicitant'!C28=\"\",\"\",'Gegevens sollicitant'!C28)","v":""},{"$f":"IF('Gegevens sollicitant'!D28=\"\",\"\",'Gegevens sollicitant'!D28)","v":""},{"$nulls":6},{"$f":"IF('Gegevens sollicitant'!L28=\"\",\"\",'Gegevens sollicitant'!L28)","v":""},{"$f":"IF('Gegevens sollicitant'!M28=\"\",\"\",'Gegevens sollicitant'!M28)","v":""}]
[{"$f":"IF('Gegevens sollicitant'!A29=\"\",\"\",'Gegevens sollicitant'!A29)","v":""},{"$f":"IF('Gegevens sollicitant'!B29=\"\",\"\",'Gegevens sollicitant'!B29)","v":""},{"$f":"IF('Gegevens sollicitant'!C29=\"\",\"\",'Gegevens sollicitant'!C29)","v":""},{"$f":"IF('Gegevens sollicitant'!D29=\"\",\"\",'Gegevens sollicitant'!D29)","v":""},{"$nulls":6},{"$f":"IF('Gegevens sollicitant'!L29=\"\",\"\",'Gegevens sollicitant'!L29)","v":""},{"$f":"IF('Gegevens sollicitant'!M29=\"\",\"\",'Gegevens sollicitant'!M29)","v":""}]
[{"$f":"IF('Gegevens sollicitant'!A30=\"\",\"\",'Gegevens sollicitant'!A30)","v":""},{"$f":"IF('Gegevens sollicitant'!B30=\"\",\"\",'Gegevens sollicitant'!B30)","v":""},{"$f":"IF('Gegevens sollicitant'!C30=\"\",\"\",'Gegevens sollicitant'!C30)","v":""},{"$f":"IF('Gegevens sollicitant'!D30=\"\",\"\",'Gegevens sollicitant'!D30)","v":""},{"$nulls":6},{"$f":"IF('Gegevens sollicitant'!L30=\"\",\"\",'Gegevens sollicitant'!L30)","v":""},{"$f":"IF('Gegevens sollicitant'!M30=\"\",\"\",'Gegevens sollicitant'!M30)","v":""}]
[{"$f":"IF('Gegevens sollicitant'!A31=\"\",\"\",'Gegevens sollicitant'!A31)","v":""},{"$f":"IF('Gegevens sollicitant'!B31=\"\",\"\",'Gegevens sollicitant'!B31)","v":""},{"$f":"IF('Gegevens sollicitant'!C31=\"\",\"\",'Gegevens sollicitant'!C31)","v":""},{"$f":"IF('Gegevens sollicitant'!D31=\"\",\"\",'Gegevens sollicitant'!D31)","v":""},{"$nulls":6},{"$f":"IF('Gegevens sollicitant'!L31=\"\",\"\",'Gegevens sollicitant'!L31)","v":""},{"$f":"IF('Gegevens sollicitant'!M31=\"\",\"\",'Gegevens sollicitant'!M31)","v":""}]
[{"$f":"IF('Gegevens sollicitant'!A32=\"\",\"\",'Gegevens sollicitant'!A32)","v":""},{"$f":"IF('Gegevens sollicitant'!B32=\"\",\"\",'Gegevens sollicitant'!B32)","v":""},{"$f":"IF('Gegevens sollicitant'!C32=\"\",\"\",'Gegevens sollicitant'!C32)","v":""},{"$f":"IF('Gegevens sollicitant'!D32=\"\",\"\",'Gegevens sollicitant'!D32)","v":""},{"$nulls":6},{"$f":"IF('Gegevens sollicitant'!L32=\"\",\"\",'Gegevens sollicitant'!L32)","v":""},{"$f":"IF('Gegevens sollicitant'!M32=\"\",\"\",'Gegevens sollicitant'!M32)","v":""}]
[{"$f":"IF('Gegevens sollicitant'!A33=\"\",\"\",'Gegevens sollicitant'!A33)","v":""},{"$f":"IF('Gegevens sollicitant'!B33=\"\",\"\",'Gegevens sollicitant'!B33)","v":""},{"$f":"IF('Gegevens sollicitant'!C33=\"\",\"\",'Gegevens sollicitant'!C33)","v":""},{"$f":"IF('Gegevens sollicitant'!D33=\"\",\"\",'Gegevens sollicitant'!D33)","v":""},{"$nulls":6},{"$f":"IF('Gegevens sollicitant'!L33=\"\",\"\",'Gegevens sollicitant'!L33)","v":""},{"$f":"IF('Gegevens sollicitant'!M33=\"\",\"\",'Gegevens sollicitant'!M33)","v":""}]
[{"$f":"IF('Gegevens sollicitant'!A34=\"\",\"\",'Gegevens sollicitant'!A34)","v":""},{"$f":"IF('Gegevens sollicitant'!B34=\"\",\"\",'Gegevens sollicitant'!B34)","v":""},{"$f":"IF('Gegevens sollicitant'!C34=\"\",\"\",'Gegevens sollicitant'!C34)","v":""},{"$f":"IF('Gegevens sollicitant'!D34=\"\",\"\",'Gegevens sollicitant'!D34)","v":""},{"$nulls":6},{"$f":"IF('Gegevens sollicitant'!L34=\"\",\"\",'Gegevens sollicitant'!L34)","v":""},{"$f":"IF('Gegevens sollicitant'!M34=\"\",\"\",'Gegevens sollicitant'!M34)","v":""}]
[{"$f":"IF('Gegevens sollicitant'!A35=\"\",\"\",'Gegevens sollicitant'!A35)","v":""},{"$f":"IF('Gegevens sollicitant'!B35=\"\",\"\",'Gegevens sollicitant'!B35)","v":""},{"$f":"IF('Gegevens sollicitant'!C35=\"\",\"\",'Gegevens sollicitant'!C35)","v":""},{"$f":"IF('Gegevens sollicitant'!D35=\"\",\"\",'Gegevens sollicitant'!D35)","v":""},{"$nulls":6},{"$f":"IF('Gegevens sollicitant'!L35=\"\",\"\",'Gegevens sollicitant'!L35)","v":""},{"$f":"IF('Gegevens sollicitant'!M35=\"\",\"\",'Gegevens sollicitant'!M35)","v":""}]
[{"$f":"IF('Gegevens sollicitant'!A36=\"\",\"\",'Gegevens sollicitant'!A36)","v":""},{"$f":"IF('Gegevens sollicitant'!B36=\"\",\"\",'Gegevens sollicitant'!B36)","v":""},{"$f":"IF('Gegevens sollicitant'!C36=\"\",\"\",'Gegevens sollicitant'!C36)","v":""},{"$f":"IF('Gegevens sollicitant'!D36=\"\",\"\",'Gegevens sollicitant'!D36)","v":""},{"$nulls":6},{"$f":"IF('Gegevens sollicitant'!L36=\"\",\"\",'Gegevens sollicitant'!L36)","v":""},{"$f":"IF('Gegevens sollicitant'!M36=\"\",\"\",'Gegevens sollicitant'!M36)","v":""}]
[{"$f":"IF('Gegevens sollicitant'!A37=\"\",\"\",'Gegevens sollicitant'!A37)","v":""},{"$f":"IF('Gegevens sollicitant'!B37=\"\",\"\",'Gegevens sollicitant'!B37)","v":""},{"$f":"IF('Gegevens sollicitant'!C37=\"\",\"\",'Gegevens sollicitant'!C37)","v":""},{"$f":"IF('Gegevens sollicitant'!D37=\"\",\"\",'Gegevens sollicitant'!D37)","v":""},{"$nulls":6},{"$f":"IF('Gegevens sollicitant'!L37=\"\",\"\",'Gegevens sollicitant'!L37)","v":""},{"$f":"IF('Gegevens sollicitant'!M37=\"\",\"\",'Gegevens sollicitant'!M37)","v":""}]
[{"$f":"IF('Gegevens sollicitant'!A38=\"\",\"\",'Gegevens sollicitant'!A38)","v":""},{"$f":"IF('Gegevens sollicitant'!B38=\"\",\"\",'Gegevens sollicitant'!B38)","v":""},{"$f":"IF('Gegevens sollicitant'!C38=\"\",\"\",'Gegevens sollicitant'!C38)","v":""},{"$f":"IF('Gegevens sollicitant'!D38=\"\",\"\",'Gegevens sollicitant'!D38)","v":""},{"$nulls":6},{"$f":"IF('Gegevens sollicitant'!L38=\"\",\"\",'Gegevens sollicitant'!L38)","v":""},{"$f":"IF('Gegevens sollicitant'!M38=\"\",\"\",'Gegevens sollicitant'!M38)","v":""}]
[{"$f":"IF('Gegevens sollicitant'!A39=\"\",\"\",'Gegevens sollicitant'!A39)","v":""},{"$f":"IF('Gegevens sollicitant'!B39=\"\",\"\",'Gegevens sollicitant'!B39)","v":""},{"$f":"IF('Gegevens sollicitant'!C39=\"\",\"\",'Gegevens sollicitant'!C39)","v":""},{"$f":"IF('Gegevens sollicitant'!D39=\"\",\"\",'Gegevens sollicitant'!D39)","v":""},{"$nulls":6},{"$f":"IF('Gegevens sollicitant'!L39=\"\",\"\",'Gegevens sollicitant'!L39)","v":""},{"$f":"IF('Gegevens sollicitant'!M39=\"\",\"\",'Gegevens sollicitant'!M39)","v":""}]
[{"$f":"IF('Gegevens sollicitant'!A40=\"\",\"\",'Gegevens sollicitant'!A40)","v":""},{"$f":"IF('Gegevens sollicitant'!B40=\"\",\"\",'Gegevens sollicitant'!B40)","v":""},{"$f":"IF('Gegevens sollicitant'!C40=\"\",\"\",'Gegevens sollicitant'!C40)","v":""},{"$f":"IF('Gegevens sollicitant'!D40=\"\",\"\",'Gegevens sollicitant'!D40)","v":""},{"$nulls":6},{"$f":"IF('Gegevens sollicitant'!L40=\"\",\"\",'Gegevens sollicitant'!L40)","v":""},{"$f":"IF('Gegevens sollicitant'!M40=\"\",\"\",'Gegevens sollicitant'!M40)","v":""}]
[{"$f":"IF('Gegevens sollicitant'!A41=\"\",\"\",'Gegevens sollicitant'!A41)","v":""},{"$f":"IF('Gegevens sollicitant'!B41=\"\",\"\",'Gegevens sollicitant'!B41)","v":""},{"$f":"IF('Gegevens sollicitant'!C41=\"\",\"\",'Gegevens sollicitant'!C41)","v":""},{"$f":"IF('Gegevens sollicitant'!D41=\"\",\"\",'Gegevens sollicitant'!D41)","v":""},{"$nulls":6},{"$f":"IF('Gegevens sollicitant'!L41=\"\",\"\",'Gegevens sollicitant'!L41)","v":""},{"$f":"IF('Gegevens sollicitant'!M41=\"\",\"\",'Gegevens sollicitant'!M41)","v":""}]
[{"$f":"IF('Gegevens sollicitant'!A42=\"\",\"\",'Gegevens sollicitant'!A42)","v":""},{"$f":"IF('Gegevens sollicitant'!B42=\"\",\"\",'Gegevens sollicitant'!B42)","v":""},{"$f":"IF('Gegevens sollicitant'!C42=\"\",\"\",'Gegevens sollicitant'!C42)","v":""},{"$f":"IF('Gegevens sollicitant'!D42=\"\",\"\",'Gegevens sollicitant'!D42)","v":""},{"$nulls":6},{"$f":"IF('Gegevens sollicitant'!L42=\"\",\"\",'Gegevens sollicitant'!L42)","v":""},{"$f":"IF('Gegevens sollicitant'!M42=\"\",\"\",'Gegevens sollicitant'!M42)","v":""}]
[{"$f":"IF('Gegevens sollicitant'!A43=\"\",\"\",'Gegevens sollicitant'!A43)","v":""},{"$f":"IF('Gegevens sollicitant'!B43=\"\",\"\",'Gegevens sollicitant'!B43)","v":""},{"$f":"IF('Gegevens sollicitant'!C43=\"\",\"\",'Gegevens sollicitant'!C43)","v":""},{"$f":"IF('Gegevens sollicitant'!D43=\"\",\"\",'Gegevens sollicitant'!D43)","v":""},{"$nulls":6},{"$f":"IF('Gegevens sollicitant'!L43=\"\",\"\",'Gegevens sollicitant'!L43)","v":""},{"$f":"IF('Gegevens sollicitant'!M43=\"\",\"\",'Gegevens sollicitant'!M43)","v":""}]
[{"$f":"IF('Gegevens sollicitant'!A44=\"\",\"\",'Gegevens sollicitant'!A44)","v":""},{"$f":"IF('Gegevens sollicitant'!B44=\"\",\"\",'Gegevens sollicitant'!B44)","v":""},{"$f":"IF('Gegevens sollicitant'!C44=\"\",\"\",'Gegevens sollicitant'!C44)","v":""},{"$f":"IF('Gegevens sollicitant'!D44=\"\",\"\",'Gegevens sollicitant'!D44)","v":""},{"$nulls":6},{"$f":"IF('Gegevens sollicitant'!L44=\"\",\"\",'Gegevens sollicitant'!L44)","v":""},{"$f":"IF('Gegevens sollicitant'!M44=\"\",\"\",'Gegevens sollicitant'!M44)","v":""}]
[{"$f":"IF('Gegevens sollicitant'!A45=\"\",\"\",'Gegevens sollicitant'!A45)","v":""},{"$f":"IF('Gegevens sollicitant'!B45=\"\",\"\",'Gegevens sollicitant'!B45)","v":""},{"$f":"IF('Gegevens sollicitant'!C45=\"\",\"\",'Gegevens sollicitant'!C45)","v":""},{"$f":"IF('Gegevens sollicitant'!D45=\"\",\"\",'Gegevens sollicitant'!D45)","v":""},{"$nulls":6},{"$f":"IF('Gegevens sollicitant'!L45=\"\",\"\",'Gegevens sollicitant'!L45)","v":""},{"$f":"IF('Gegevens sollicitant'!M45=\"\",\"\",'Gegevens sollicitant'!M45)","v":""}]
[{"$f":"IF('Gegevens sollicitant'!A46=\"\",\"\",'Gegevens sollicitant'!A46)","v":""},{"$f":"IF('Gegevens sollicitant'!B46=\"\",\"\",'Gegevens sollicitant'!B46)","v":""},{"$f":"IF('Gegevens sollicitant'!C46=\"\",\"\",'Gegevens sollicitant'!C46)","v":""},{"$f":"IF('Gegevens sollicitant'!D46=\"\",\"\",'Gegevens sollicitant'!D46)","v":""},{"$nulls":6},{"$f":"IF('Gegevens sollicitant'!L46=\"\",\"\",'Gegevens sollicitant'!L46)","v":""},{"$f":"IF('Gegevens sollicitant'!M46=\"\",\"\",'Gegevens sollicitant'!M46)","v":""}]
[{"$f":"IF('Gegevens sollicitant'!A47=\"\",\"\",'Gegevens sollicitant'!A47)","v":""},{"$f":"IF('Gegevens sollicitant'!B47=\"\",\"\",'Gegevens sollicitant'!B47)","v":""},{"$f":"IF('Gegevens sollicitant'!C47=\"\",\"\",'Gegevens sollicitant'!C47)","v":""},{"$f":"IF('Gegevens sollicitant'!D47=\"\",\"\",'Gegevens sollicitant'!D47)","v":""},{"$nulls":6},{"$f":"IF('Gegevens sollicitant'!L47=\"\",\"\",'Gegevens sollicitant'!L47)","v":""},{"$f":"IF('Gegevens sollicitant'!M47=\"\",\"\",'Gegevens sollicitant'!M47)","v":""}]
[{"$f":"IF('Gegevens sollicitant'!A48=\"\",\"\",'Gegevens sollicitant'!A48)","v":""},{"$f":"IF('Gegevens sollicitant'!B48=\"\",\"\",'Gegevens sollicitant'!B48)","v":""},{"$f":"IF('Gegevens sollicitant'!C48=\"\",\"\",'Gegevens sollicitant'!C48)","v":""},{"$f":"IF('Gegevens sollicitant'!D48=\"\",\"\",'Gegevens sollicitant'!D48)","v":""},{"$nulls":6},{"$f":"IF('Gegevens sollicitant'!L48=\"\",\"\",'Gegevens sollicitant'!L48)","v":""},{"$f":"IF('Gegevens sollicitant'!M48=\"\",\"\",'Gegevens sollicitant'!M48)","v":""}]
[{"$f":"IF('Gegevens sollicitant'!A49=\"\",\"\",'Gegevens sollicitant'!A49)","v":""},{"$f":"IF('Gegevens sollicitant'!B49=\"\",\"\",'Gegevens sollicitant'!B49)","v":""},{"$f":"IF('Gegevens sollicitant'!C49=\"\",\"\",'Gegevens sollicitant'!C49)","v":""},{"$f":"IF('Gegevens sollicitant'!D49=\"\",\"\",'Gegevens sollicitant'!D49)","v":""},{"$nulls":6},{"$f":"IF('Gegevens sollicitant'!L49=\"\",\"\",'Gegevens sollicitant'!L49)","v":""},{"$f":"IF('Gegevens sollicitant'!M49=\"\",\"\",'Gegevens sollicitant'!M49)","v":""}]
[{"$f":"IF('Gegevens sollicitant'!A50=\"\",\"\",'Gegevens sollicitant'!A50)","v":""},{"$f":"IF('Gegevens sollicitant'!B50=\"\",\"\",'Gegevens sollicitant'!B50)","v":""},{"$f":"IF('Gegevens sollicitant'!C50=\"\",\"\",'Gegevens sollicitant'!C50)","v":""},{"$f":"IF('Gegevens sollicitant'!D50=\"\",\"\",'Gegevens sollicitant'!D50)","v":""},{"$nulls":6},{"$f":"IF('Gegevens sollicitant'!L50=\"\",\"\",'Gegevens sollicitant'!L50)","v":""},{"$f":"IF('Gegevens sollicitant'!M50=\"\",\"\",'Gegevens sollicitant'!M50)","v":""}]
[{"$f":"IF('Gegevens sollicitant'!A51=\"\",\"\",'Gegevens sollicitant'!A51)","v":""},{"$f":"IF('Gegevens sollicitant'!B51=\"\",\"\",'Gegevens sollicitant'!B51)","v":""},{"$f":"IF('Gegevens sollicitant'!C51=\"\",\"\",'Gegevens sollicitant'!C51)","v":""},{"$f":"IF('Gegevens sollicitant'!D51=\"\",\"\",'Gegevens sollicitant'!D51)","v":""},{"$nulls":6},{"$f":"IF('Gegevens sollicitant'!L51=\"\",\"\",'Gegevens sollicitant'!L51)","v":""},{"$f":"IF('Gegevens sollicitant'!M51=\"\",\"\",'Gegevens sollicitant'!M51)","v":""}]
[{"$f":"IF('Gegevens sollicitant'!A52=\"\",\"\",'Gegevens sollicitant'!A52)","v":""},{"$f":"IF('Gegevens sollicitant'!B52=\"\",\"\",'Gegevens sollicitant'!B52)","v":""},{"$f":"IF('Gegevens sollicitant'!C52=\"\",\"\",'Gegevens sollicitant'!C52)","v":""},{"$f":"IF('Gegevens sollicitant'!D52=\"\",\"\",'Gegevens sollicitant'!D52)","v":""},{"$nulls":6},{"$f":"IF('Gegevens sollicitant'!L52=\"\",\"\",'Gegevens sollicitant'!L52)","v":""},{"$f":"IF('Gegevens sollicitant'!M52=\"\",\"\",'Gegevens sollicitant'!M52)","v":""}]
[{"$f":"IF('Gegevens sollicitant'!A53=\"\",\"\",'Gegevens sollicitant'!A53)","v":""},{"$f":"IF('Gegevens sollicitant'!B53=\"\",\"\",'Gegevens sollicitant'!B53)","v":""},{"$f":"IF('Gegevens sollicitant'!C53=\"\",\"\",'Gegevens sollicitant'!C53)","v":""},{"$f":"IF('Gegevens sollicitant'!D53=\"\",\"\",'Gegevens sollicitant'!D53)","v":""},{"$nulls":6},{"$f":"IF('Gegevens sollicitant'!L53=\"\",\"\",'Gegevens sollicitant'!L53)","v":""},{"$f":"IF('Gegevens sollicitant'!M53=\"\",\"\",'Gegevens sollicitant'!M53)","v":""}]
[{"$f":"IF('Gegevens sollicitant'!A54=\"\",\"\",'Gegevens sollicitant'!A54)","v":""},{"$f":"IF('Gegevens sollicitant'!B54=\"\",\"\",'Gegevens sollicitant'!B54)","v":""},{"$f":"IF('Gegevens sollicitant'!C54=\"\",\"\",'Gegevens sollicitant'!C54)","v":""},{"$f":"IF('Gegevens sollicitant'!D54=\"\",\"\",'Gegevens sollicitant'!D54)","v":""},{"$nulls":6},{"$f":"IF('Gegevens sollicitant'!L54=\"\",\"\",'Gegevens sollicitant'!L54)","v":""},{"$f":"IF('Gegevens sollicitant'!M54=\"\",\"\",'Gegevens sollicitant'!M54)","v":""}]
[{"$f":"IF('Gegevens sollicitant'!A55=\"\",\"\",'Gegevens sollicitant'!A55)","v":""},{"$f":"IF('Gegevens sollicitant'!B55=\"\",\"\",'Gegevens sollicitant'!B55)","v":""},{"$f":"IF('Gegevens sollicitant'!C55=\"\",\"\",'Gegevens sollicitant'!C55)","v":""},{"$f":"IF('Gegevens sollicitant'!D55=\"\",\"\",'Gegevens sollicitant'!D55)","v":""},{"$nulls":6},{"$f":"IF('Gegevens sollicitant'!L55=\"\",\"\",'Gegevens sollicitant'!L55)","v":""},{"$f":"IF('Gegevens sollicitant'!M55=\"\",\"\",'Gegevens sollicitant'!M55)","v":""}]
[{"$f":"IF('Gegevens sollicitant'!A56=\"\",\"\",'Gegevens sollicitant'!A56)","v":""},{"$f":"IF('Gegevens sollicitant'!B56=\"\",\"\",'Gegevens sollicitant'!B56)","v":""},{"$f":"IF('Gegevens sollicitant'!C56=\"\",\"\",'Gegevens sollicitant'!C56)","v":""},{"$f":"IF('Gegevens sollicitant'!D56=\"\",\"\",'Gegevens sollicitant'!D56)","v":""},{"$nulls":6},{"$f":"IF('Gegevens sollicitant'!L56=\"\",\"\",'Gegevens sollicitant'!L56)","v":""},{"$f":"IF('Gegevens sollicitant'!M56=\"\",\"\",'Gegevens sollicitant'!M56)","v":""}]
[{"$f":"IF('Gegevens sollicitant'!A57=\"\",\"\",'Gegevens sollicitant'!A57)","v":""},{"$f":"IF('Gegevens sollicitant'!B57=\"\",\"\",'Gegevens sollicitant'!B57)","v":""},{"$f":"IF('Gegevens sollicitant'!C57=\"\",\"\",'Gegevens sollicitant'!C57)","v":""},{"$f":"IF('Gegevens sollicitant'!D57=\"\",\"\",'Gegevens sollicitant'!D57)","v":""},{"$nulls":6},{"$f":"IF('Gegevens sollicitant'!L57=\"\",\"\",'Gegevens sollicitant'!L57)","v":""},{"$f":"IF('Gegevens sollicitant'!M57=\"\",\"\",'Gegevens sollicitant'!M57)","v":""}]
[{"$f":"IF('Gegevens sollicitant'!A58=\"\",\"\",'Gegevens sollicitant'!A58)","v":""},{"$f":"IF('Gegevens sollicitant'!B58=\"\",\"\",'Gegevens sollicitant'!B58)","v":""},{"$f":"IF('Gegevens sollicitant'!C58=\"\",\"\",'Gegevens sollicitant'!C58)","v":""},{"$f":"IF('Gegevens sollicitant'!D58=\"\",\"\",'Gegevens sollicitant'!D58)","v":""},{"$nulls":6},{"$f":"IF('Gegevens sollicitant'!L58=\"\",\"\",'Gegevens sollicitant'!L58)","v":""},{"$f":"IF('Gegevens sollicitant'!M58=\"\",\"\",'Gegevens sollicitant'!M58)","v":""}]
[{"$f":"IF('Gegevens sollicitant'!A59=\"\",\"\",'Gegevens sollicitant'!A59)","v":""},{"$f":"IF('Gegevens sollicitant'!B59=\"\",\"\",'Gegevens sollicitant'!B59)","v":""},{"$f":"IF('Gegevens sollicitant'!C59=\"\",\"\",'Gegevens sollicitant'!C59)","v":""},{"$f":"IF('Gegevens sollicitant'!D59=\"\",\"\",'Gegevens sollicitant'!D59)","v":""},{"$nulls":6},{"$f":"IF('Gegevens sollicitant'!L59=\"\",\"\",'Gegevens sollicitant'!L59)","v":""},{"$f":"IF('Gegevens sollicitant'!M59=\"\",\"\",'Gegevens sollicitant'!M59)","v":""}]